fUST/lending_fUST_20250822
["ID","MTS","AMOUNT","RATE_DAILY","PERIOD"]
[380500733,1755795058628,-480.0,0.00021109,2]
[380500735,1755795058637,-13960.06,0.00021109,2]
[380500736,1755795058646,-1099.16,0.00021109,2]
[380500738,1755795058656,-582.59,0.00021109,2]
[380500740,1755795058665,-516.15,0.00021109,2]
[380500742,1755795058675,-3881.61,0.00021109,2]
[380500744,1755795058684,-553.28,0.00021109,2]
[380500746,1755795058694,-1665.3,0.00021109,2]
[380500748,1755795058703,-480.0,0.00021109,2]
[380500750,1755795058712,-1698.24,0.00021109,2]
[380500752,1755795058721,-1146.03,0.00021109,2]
[380500753,1755795058730,-3256.89,0.00021109,2]
[380500755,1755795058740,-1295.91,0.00021109,2]
[380500757,1755795058749,-480.0,0.00021109,2]
[380500759,1755795058758,-480.0,0.00021109,2]
[380500761,1755795058767,-1543.62,0.00021109,2]
[380500763,1755795058777,-13000.75,0.00021109,2]
[380500765,1755795058786,-480.0,0.00021109,2]
[380500767,1755795058795,-728.49,0.00021109,2]
[380500768,1755795058804,-480.0,0.00021109,2]
[380500770,1755795058813,-528.115971,0.00021109,2]
[380500772,1755795058823,-528.115971,0.00021109,2]
[380500774,1755795058832,-480.0,0.00021109,2]
[380500776,1755795058842,-528.115971,0.00021109,2]
[380500778,1755795058851,-528.115971,0.00021109,2]
[380500780,1755795058861,-1493.01,0.00021109,2]
[380500782,1755795058873,-480.0,0.00021109,2]
[380500784,1755795058882,-9222.47,0.00021109,2]
[380500786,1755795058891,-151.0,0.0002111,2]
[380500788,1755795058901,-151.0,0.0002111,2]
[380500790,1755795058910,-304.47595,0.0002111,2]
[380500791,1755795058919,-304.47595,0.0002111,2]
[380500793,1755795058928,-304.47595,0.0002111,2]
[380500795,1755795058937,-304.47595,0.0002111,2]
[380500797,1755795058948,-151.0,0.0002111,2]
[380500799,1755795058957,-151.0,0.0002111,2]
[380500801,1755795058966,-153.011688,0.0002111,2]
[380500803,1755795058976,-3333.0,0.0002111,2]
[380500805,1755795058985,-603.72,0.0002111,2]
[380500807,1755795058994,-151.0,0.00021111,2]
[380500809,1755795059003,-151.0,0.00021111,2]
[380500810,1755795059012,-151.0,0.00021111,2]
[380500812,1755795059021,-151.0,0.00021111,2]
[380500814,1755795059031,-151.0,0.00021111,2]
[380500816,1755795059046,-151.0,0.00021111,2]
[380500818,1755795059055,-151.0,0.00021111,2]
[380500820,1755795059064,-480.0,0.00021111,2]
[380500822,1755795059073,-5317.09,0.00021111,2]
[380500824,1755795059082,-630.99,0.00021111,2]
[380500826,1755795059092,-2206.92,0.00021111,2]
[380500828,1755795059101,-567.83,0.00021111,2]
[380500830,1755795059110,-2337.19,0.00021111,2]
[380500832,1755795059123,-273.175278,0.00021111,2]
[380500833,1755795059134,-273.175278,0.00021111,2]
[380500835,1755795059144,-151.0,0.00021111,2]
[380500837,1755795059153,-273.175278,0.00021111,2]
[380500840,1755795059169,-273.175278,0.00021111,2]
[380500842,1755795059183,-1824.3,0.00021111,2]
[380500844,1755795059192,-151.0,0.00021111,2]
[380500846,1755795059202,-151.0,0.00021111,2]
[380500848,1755795059211,-3790.51,0.00021111,2]
[380500850,1755795059221,-725.19,0.00021111,2]
[380500852,1755795059230,-1348.03,0.00021113,2]
[380500854,1755795059239,-831.39,0.00021113,2]
[380500855,1755795059248,-480.0,0.00021113,2]
[380500857,1755795059258,-1041.87,0.00021113,2]
[380500859,1755795059268,-480.0,0.00021113,2]
[380500861,1755795059277,-832.73,0.00021113,2]
[380500863,1755795059286,-480.0,0.00021113,2]
[380500865,1755795059295,-957.11,0.00021113,2]
[380500867,1755795059304,-645.56,0.00021113,2]
[380500868,1755795059314,-1110.54,0.00021113,2]
[380500870,1755795059323,-756.48,0.00021113,2]
[380500872,1755795059332,-151.0,0.0002112,2]
[380500874,1755795059342,-151.0,0.0002112,2]
[380500876,1755795059351,-151.0,0.0002112,2]
[380500878,1755795059361,-894.03,0.0002112,2]
[380500880,1755795059370,-505.31,0.0002112,2]
[380500882,1755795059381,-480.0,0.0002112,2]
[380500884,1755795059390,-835.36,0.0002112,2]
[380500885,1755795059399,-747.78,0.0002112,2]
[380500887,1755795059408,-480.0,0.0002112,2]
[380500889,1755795059418,-1000.0,0.00021121,2]
[380500891,1755795059427,-512.74954049,0.00021121,2]
[380500893,1755795059436,-1073.23498352,0.00021121,2]
[380500895,1755795059446,-1000.0,0.00021121,2]
[380500897,1755795059455,-1000.0,0.00021121,2]
[380500899,1755795059464,-503.82933507,0.00021121,2]
[380500901,1755795059473,-501.84672423,0.00021121,2]
[380500902,1755795059482,-504.2643275,0.00021121,2]
[380500904,1755795059491,-1000.0,0.00021121,2]
[380500906,1755795059501,-506.64048263,0.00021121,2]
[380500908,1755795059510,-794.80324733,0.00021121,2]
[380500910,1755795059521,-1000.0,0.00021121,2]
[380500912,1755795059530,-1000.0,0.00021121,2]
[380500914,1755795059540,-1000.0,0.00021121,2]
[380500916,1755795059549,-1001.31855364,0.00021121,2]
[380500917,1755795059558,-850.93706637,0.00021121,2]
[380500919,1755795059568,-1000.0,0.00021121,2]
[380500921,1755795059577,-1000.0,0.00021121,2]
[380500923,1755795059586,-500.79405762,0.00021121,2]
[380500925,1755795059596,-1000.0,0.00021121,2]
[380500927,1755795059605,-1000.0,0.00021121,2]
[380500929,1755795059614,-500.54137119,0.00021121,2]
[380500931,1755795059623,-1000.0,0.00021121,2]
[380500932,1755795059633,-500.0,0.00021121,2]
[380500934,1755795059643,-1000.0,0.00021121,2]
[380500936,1755795059653,-695.9990109,0.00021121,2]
[380500938,1755795059663,-537.54,0.00021121,2]
[380500940,1755795059672,-480.0,0.00021121,2]
[380500942,1755795059682,-480.0,0.00021121,2]
[380500944,1755795059692,-480.0,0.00021121,2]
[380500946,1755795059701,-629.66,0.00021121,2]
[380500948,1755795059710,-480.0,0.00021121,2]
[380500950,1755795059720,-480.0,0.00021121,2]
[380500951,1755795059730,-788.2,0.00021121,2]
[380500953,1755795059739,-153.24579756,0.00021121,2]
[380500955,1755795059749,-480.0,0.00021121,2]
[380500957,1755795059758,-913.01,0.00021121,2]
[380500959,1755795059768,-480.0,0.00021121,2]
[380500961,1755795059777,-1125.06,0.00021121,2]
[380500963,1755795059787,-480.0,0.00021121,2]
[380500965,1755795059796,-1231.36,0.00021121,2]
[380500967,1755795059805,-480.0,0.00021121,2]
[380500969,1755795059815,-480.0,0.00021121,2]
[380500971,1755795059824,-480.0,0.00021121,2]
[380500972,1755795059834,-480.0,0.00021121,2]
[380500974,1755795059843,-480.0,0.00021121,2]
[380500976,1755795059852,-480.0,0.00021121,2]
[380500978,1755795059861,-480.0,0.00021121,2]
[380500980,1755795059872,-590.71,0.00021121,2]
[380500982,1755795059881,-480.0,0.00021121,2]
[380500983,1755795059890,-480.0,0.00021121,2]
[380500985,1755795059900,-480.0,0.00021121,2]
[380500987,1755795059909,-480.0,0.00021121,2]
[380500989,1755795059919,-480.0,0.00021121,2]
[380500991,1755795059928,-480.0,0.00021121,2]
[380500993,1755795059937,-151.0,0.00021121,2]
[380500995,1755795059946,-151.0,0.00021121,2]
[380500997,1755795059956,-151.0,0.00021121,2]
[380500999,1755795059965,-169.193394,0.00021121,2]
[380501000,1755795059975,-151.0,0.00021121,2]
[380501002,1755795059984,-154.69475,0.00021121,2]
[380501004,1755795059993,-151.0,0.00021121,2]
[380501006,1755795060003,-151.0,0.00021121,2]
[380501008,1755795060012,-151.0,0.00021121,2]
[380501010,1755795060022,-151.0,0.00021121,2]
[380501012,1755795060033,-480.0,0.00021121,2]
[380501014,1755795060045,-480.0,0.00021121,2]
[380501016,1755795060056,-480.0,0.00021121,2]
[380501017,1755795060066,-730.69,0.00021121,2]
[380501019,1755795060076,-151.0,0.00021121,2]
[380501021,1755795060086,-878.109382,0.00021121,2]
[380501023,1755795060096,-878.109382,0.00021121,2]
[380501025,1755795060106,-878.109382,0.00021121,2]
[380501027,1755795060115,-570.85,0.00021121,2]
[380501029,1755795060126,-878.109382,0.00021121,2]
[380501031,1755795060136,-151.0,0.00021121,2]
[380501033,1755795060146,-480.0,0.00021121,2]
[380501035,1755795060155,-151.0,0.00021121,2]
[380501037,1755795060164,-151.0,0.00021121,2]
[380501038,1755795060173,-151.0,0.00021121,2]
[380501040,1755795060182,-151.0,0.00021121,2]
[380501042,1755795060193,-605.11,0.00021121,2]
[380501044,1755795060203,-151.0,0.00021121,2]
[380501046,1755795060213,-151.0,0.00021121,2]
[380501048,1755795060222,-151.0,0.00021121,2]
[380501050,1755795060232,-480.0,0.00021121,2]
[380501052,1755795060241,-151.0,0.00021121,2]
[380501054,1755795060251,-595.08,0.00021121,2]
[380501056,1755795060261,-480.0,0.00021121,2]
[380501072,1755795060448,-480.0,0.00021122,2]
[380501073,1755795060458,-480.0,0.00021122,2]
[380501074,1755795060468,-480.0,0.00021122,2]
[380501075,1755795060478,-480.0,0.00021122,2]
[380501076,1755795060487,-480.0,0.00021122,2]
[380501077,1755795060497,-526.92,0.00021122,2]
[380501078,1755795060507,-649.0,0.00021122,2]
[380501079,1755795060517,-765.15,0.00021122,2]
[380501080,1755795060527,-1789.29,0.00021122,2]
[380501081,1755795060536,-681.76,0.00021122,2]
[380501082,1755795060546,-480.0,0.00021122,2]
[380501083,1755795060556,-480.0,0.00021122,2]
[380501084,1755795060565,-800.59,0.00021122,2]
[380501085,1755795060575,-156.9931547,0.00021122,2]
[380501086,1755795060584,-480.0,0.00021125,2]
[380501087,1755795060593,-480.0,0.00021125,2]
[380501088,1755795060603,-883.05,0.00021125,2]
[380501089,1755795060612,-554.03,0.00021125,2]
[380501090,1755795060621,-497.04,0.00021125,2]
[380501091,1755795060630,-480.0,0.00021125,2]
[380501092,1755795060640,-480.0,0.00021125,2]
[380501094,1755795060649,-480.0,0.00021125,2]
[380501095,1755795060658,-800.0,0.00021143,2]
[380501097,1755795060667,-1500.0,0.00021168,2]
[380501099,1755795060676,-1500.0,0.00021168,2]
[380501101,1755795060686,-1500.0,0.00021168,2]
[380501103,1755795060695,-1500.0,0.00021168,2]
[380501105,1755795060705,-500.92954421,0.00021168,2]
[380501107,1755795060714,-1500.0,0.00021168,2]
[380501109,1755795060724,-1500.0,0.00021168,2]
[380501111,1755795060733,-486.20982051,0.00021168,2]
[380501113,1755795060743,-1500.0,0.00021168,2]
[380501115,1755795060752,-800.0,0.0002124,2]
[380501117,1755795060764,-284.0,0.00021244,2]
[380501119,1755795060773,-800.0,0.00021246,2]
[380501121,1755795060783,-480.0,0.00021281,2]
[380501123,1755795060793,-480.0,0.00021282,2]
[380501125,1755795060804,-1095.43,0.00021282,2]
[380501127,1755795060814,-480.0,0.00021282,2]
[380501129,1755795060824,-480.0,0.00021282,2]
[380501131,1755795060834,-583.84,0.00021282,2]
[380501133,1755795060843,-480.0,0.00021282,2]
[380501135,1755795060853,-664.45,0.00021282,2]
[380501137,1755795060863,-480.0,0.00021282,2]
[380501139,1755795060873,-480.0,0.00021282,2]
[380501141,1755795060883,-1097.54,0.00021282,2]
[380501143,1755795060892,-1178.02,0.00021282,2]
[380501145,1755795060901,-480.0,0.00021282,2]
[380501147,1755795060911,-668.64,0.00021282,2]
[380501149,1755795060920,-1323.08,0.00021282,2]
[380501151,1755795060929,-3924.97,0.00021282,2]
[380501153,1755795060939,-480.0,0.00021282,2]
[380501155,1755795060948,-645.86,0.00021282,2]
[380501157,1755795060958,-492.89,0.00021282,2]
[380501159,1755795060968,-800.0,0.00021313,2]
[380501161,1755795060976,-151.0,0.00021313,2]
[380501163,1755795060986,-151.0,0.00021313,2]
[380501165,1755795060995,-151.0,0.00021313,2]
[380501167,1755795061005,-151.0,0.00021313,2]
[380501169,1755795061016,-151.0,0.00021313,2]
[380501171,1755795061025,-255.198202,0.00021313,2]
[380501173,1755795061035,-151.0,0.00021313,2]
[380501175,1755795061050,-259.55674,0.00021313,2]
[380501177,1755795061060,-151.0,0.00021313,2]
[380501179,1755795061069,-151.0,0.00021313,2]
[380501181,1755795061078,-151.0,0.00021313,2]
[380501183,1755795061088,-168.137965,0.00021313,2]
[380501185,1755795061097,-151.0,0.00021371,2]
[380501187,1755795061106,-411.728134,0.00021371,2]
[380501188,1755795061116,-411.728134,0.00021371,2]
[380501191,1755795061128,-411.728134,0.00021371,2]
[380501192,1755795061137,-411.728134,0.00021371,2]
[380501194,1755795061146,-151.0,0.00021371,2]
[380501196,1755795061156,-151.0,0.00021371,2]
[380501198,1755795061166,-151.0,0.00021371,2]
[380501200,1755795061176,-151.0,0.00021371,2]
[380501202,1755795061185,-151.0,0.00021371,2]
[380501204,1755795061194,-2842.98414268,0.00021371,2]
[380501223,1755795061367,-2213.65,0.00021371,2]
[380501226,1755795061381,-1773.08585732,0.00021371,2]
[380501228,1755795061391,-480.0,0.00021371,2]
[380501230,1755795061401,-151.0,0.00021371,2]
[380501232,1755795061412,-151.0,0.00021371,2]
[380501234,1755795061422,-3896.16,0.00021371,2]
[380501236,1755795061431,-151.0,0.00021371,2]
[380501238,1755795061441,-151.0,0.00021371,2]
[380501240,1755795061451,-685.17,0.00021371,2]
[380501242,1755795061461,-151.0,0.00021371,2]
[380501244,1755795061470,-1815.64,0.00021371,2]
[380501246,1755795061480,-570.84,0.00021371,2]
[380501248,1755795061489,-480.0,0.00021371,2]
[380501250,1755795061499,-1291.28,0.00021371,2]
[380501252,1755795061509,-9091.79,0.00021371,2]
[380501254,1755795061519,-5174.42,0.00021371,2]
[380501256,1755795061529,-4066.25,0.00021371,2]
[380501258,1755795061540,-1256.41,0.00021371,2]
[380501260,1755795061551,-480.0,0.00021371,2]
[380501262,1755795061561,-3070.06,0.00021371,2]
[380501264,1755795061570,-1540.42,0.00021371,2]
[380501266,1755795061579,-1836.9,0.00021371,2]
[380501268,1755795061589,-4108.66,0.00021371,2]
[380501270,1755795061599,-480.0,0.00021371,2]
[380501272,1755795061609,-745.25,0.00021371,2]
[380501274,1755795061619,-500.0,0.00021373,2]
[380501276,1755795061630,-500.0,0.00021373,2]
[380501278,1755795061639,-441.33735515,0.00021378,2]
[380501280,1755795061649,-500.0,0.00021382,2]
[380501282,1755795061658,-610.71,0.00021383,2]
[380501284,1755795061668,-480.0,0.00021383,2]
[380501286,1755795061677,-480.0,0.00021383,2]
[380501288,1755795061686,-480.0,0.00021383,2]
[380501290,1755795061696,-480.0,0.00021383,2]
[380501292,1755795061705,-480.0,0.00021383,2]
[380501293,1755795061716,-881.5,0.00021383,2]
[380501295,1755795061725,-551.63,0.00021383,2]
[380501297,1755795061737,-1400.33,0.00021383,2]
[380501299,1755795061752,-480.0,0.00021383,2]
[380501301,1755795061762,-551.92,0.00021383,2]
[380501303,1755795061772,-796.26,0.00021383,2]
[380501305,1755795061782,-480.0,0.00021383,2]
[380501307,1755795061792,-1370.52,0.00021383,2]
[380501309,1755795061802,-480.0,0.00021383,2]
[380501311,1755795061811,-809.79,0.00021383,2]
[380501313,1755795061821,-637.15,0.00021383,2]
[380501315,1755795061830,-480.0,0.00021383,2]
[380501317,1755795061840,-480.0,0.00021383,2]
[380501319,1755795061850,-480.0,0.00021383,2]
[380501321,1755795061859,-1224.43,0.00021383,2]
[380501323,1755795061868,-616.92880925,0.00021383,2]
[380501325,1755795061879,-480.0,0.00021383,2]
[380501327,1755795061888,-2000.06,0.00021383,2]
[380501329,1755795061898,-480.0,0.00021383,2]
[380501331,1755795061908,-480.0,0.00021383,2]
[380501333,1755795061918,-480.0,0.00021383,2]
[380501335,1755795061927,-835.12,0.00021383,2]
[380501337,1755795061937,-480.0,0.00021383,2]
[380501339,1755795061946,-916.22,0.00021383,2]
[380501341,1755795061955,-480.0,0.00021383,2]
[380501343,1755795061964,-669.48,0.00021383,2]
[380501345,1755795061973,-1984.32,0.00021383,2]
[380501347,1755795061982,-846.66,0.00021383,2]
[380501349,1755795061991,-1474.61,0.00021383,2]
[380501351,1755795062000,-480.0,0.00021383,2]
[380501353,1755795062010,-2158.3,0.00021383,2]
[380501355,1755795062019,-818.64,0.00021383,2]
[380501357,1755795062029,-638.32,0.00021383,2]
[380501359,1755795062038,-814.21,0.00021383,2]
[380501361,1755795062052,-480.0,0.00021383,2]
[380501363,1755795062061,-480.0,0.00021383,2]
[380501365,1755795062069,-480.0,0.00021383,2]
[380501367,1755795062079,-480.0,0.00021383,2]
[380501369,1755795062089,-625.29,0.00021383,2]
[380501371,1755795062098,-776.34,0.00021383,2]
[380501373,1755795062108,-480.0,0.00021383,2]
[380501374,1755795062122,-480.0,0.00021383,2]
[380501376,1755795062132,-480.0,0.00021383,2]
[380501378,1755795062140,-480.0,0.00021383,2]
[380501380,1755795062149,-480.0,0.00021383,2]
[380501382,1755795062159,-419.45413679,0.00021383,2]
[380501385,1755795062172,-60.54586321,0.00021383,2]
[380501387,1755795062181,-379.45413679,0.00021383,2]
[380501389,1755795062193,-1275.49586321,0.00021383,2]
[380501391,1755795062202,-480.0,0.00021383,2]
[380501393,1755795062211,-480.0,0.00021383,2]
[380501395,1755795062222,-655.68,0.00021383,2]
[380501397,1755795062231,-570.80495637,0.00021383,2]
[380501399,1755795062240,-2006.73,0.00021383,2]
[380501401,1755795062250,-596.98,0.00021383,2]
[380501403,1755795062259,-1793.25,0.00021383,2]
[380501405,1755795062268,-809.61,0.00021383,2]
[380501407,1755795062278,-878.8,0.00021383,2]
[380501409,1755795062287,-480.0,0.00021383,2]
[380501411,1755795062297,-928.8,0.00021383,2]
[380501413,1755795062307,-656.48,0.00021383,2]
[380501415,1755795062316,-198.36918042,0.00021383,2]
[380501417,1755795062327,-652.19081958,0.00021383,2]
[380501419,1755795062337,-1394.95,0.00021383,2]
[380501421,1755795062346,-480.0,0.00021383,2]
[380501423,1755795062356,-1043.02,0.00021383,2]
[380501424,1755795062366,-480.0,0.00021383,2]
[380501426,1755795062380,-480.0,0.00021383,2]
[380501428,1755795062389,-638.66,0.00021383,2]
[380501430,1755795062399,-480.0,0.00021383,2]
[380501432,1755795062412,-480.0,0.00021383,2]
[380501434,1755795062423,-1028.37,0.00021383,2]
[380501436,1755795062432,-1155.52,0.00021383,2]
[380501438,1755795062442,-1884.4,0.00021383,2]
[380501440,1755795062454,-1939.3,0.00021383,2]
[380501442,1755795062467,-582.46059322,0.00021383,2]
[380501444,1755795062481,-770.47940678,0.00021383,2]
[380501446,1755795062491,-827.73,0.00021383,2]
[380501448,1755795062501,-480.0,0.00021383,2]
[380501450,1755795062511,-1149.3,0.00021383,2]
[380501452,1755795062522,-1959.62,0.00021383,2]
[380501454,1755795062531,-819.96,0.00021383,2]
[380501456,1755795062540,-772.22,0.00021383,2]
[380501458,1755795062549,-2861.81,0.00021383,2]
[380501460,1755795062559,-480.0,0.00021383,2]
[380501462,1755795062568,-911.38,0.00021383,2]
[380501464,1755795062577,-1777.28,0.00021383,2]
[380501466,1755795062586,-480.0,0.00021383,2]
[380501468,1755795062595,-480.0,0.00021383,2]
[380501470,1755795062604,-2589.21,0.00021383,2]
[380501472,1755795062613,-948.27,0.00021383,2]
[380501474,1755795062624,-480.0,0.00021383,2]
[380501476,1755795062633,-480.0,0.00021383,2]
[380501477,1755795062642,-13960.06,0.00021383,2]
[380501479,1755795062651,-1099.16,0.00021383,2]
[380501481,1755795062660,-582.59,0.00021383,2]
[380501483,1755795062669,-516.15,0.00021383,2]
[380501485,1755795062678,-3881.61,0.00021383,2]
[380501487,1755795062687,-553.28,0.00021383,2]
[380501489,1755795062696,-1665.3,0.00021383,2]
[380501491,1755795062706,-480.0,0.00021383,2]
[380501493,1755795062716,-1698.24,0.00021383,2]
[380501495,1755795062726,-1146.03,0.00021383,2]
[380501497,1755795062736,-3256.89,0.00021383,2]
[380501499,1755795062746,-1295.91,0.00021383,2]
[380501501,1755795062755,-480.0,0.00021383,2]
[380501503,1755795062764,-480.0,0.00021383,2]
[380501505,1755795062773,-1543.62,0.00021383,2]
[380501507,1755795062783,-13000.75,0.00021383,2]
[380501509,1755795062792,-480.0,0.00021383,2]
[380501511,1755795062801,-628.84919535,0.00021383,2]
[380501601,1755795063676,-500.0,0.00019726,2]
[380501603,1755795063686,-500.0,0.00019726,2]
[380501605,1755795063696,-500.0,0.00019726,2]
[380501607,1755795063709,-500.0,0.00019726,2]
[380501609,1755795063730,-187.04205435,0.00019726,2]
[380501611,1755795063745,-500.0,0.00019726,2]
[380501613,1755795063755,-500.0,0.00019726,2]
[380501615,1755795063764,-500.0,0.00019726,2]
[380501617,1755795063773,-500.0,0.00019726,2]
[380501619,1755795063783,-500.0,0.00019726,2]
[380501621,1755795063792,-500.0,0.00019726,2]
[380501622,1755795063802,-500.0,0.00019726,2]
[380501625,1755795063811,-367.60603234,0.00019726,2]
[380501627,1755795063821,-500.0,0.00019726,2]
[380501629,1755795063830,-500.0,0.00019726,2]
[380501630,1755795063840,-500.0,0.00019726,2]
[380501633,1755795063849,-500.0,0.00019726,2]
[380501635,1755795063859,-500.0,0.00019726,2]
[380501636,1755795063869,-500.0,0.00019726,2]
[380501638,1755795063881,-500.0,0.00019726,2]
[380501640,1755795063891,-500.0,0.00019726,2]
[380501642,1755795063901,-500.0,0.00019726,2]
[380501644,1755795063910,-500.0,0.00019726,2]
[380501646,1755795063919,-500.0,0.00019726,2]
[380501648,1755795063929,-500.0,0.00019726,2]
[380501650,1755795063939,-500.0,0.00019726,2]
[380501652,1755795063948,-500.0,0.00019726,2]
[380501654,1755795063957,-500.0,0.00019726,2]
[380501656,1755795063966,-500.0,0.00019726,2]
[380501658,1755795063976,-500.0,0.00019726,2]
[380501660,1755795063986,-500.0,0.00019726,2]
[380501662,1755795063995,-480.0,0.00019743,2]
[380501664,1755795064005,-247.817433,0.00020561,2]
[380501666,1755795064014,-480.0,0.00020561,2]
[380501668,1755795064023,-528.88070896,0.000206,3]
[380501670,1755795064033,-480.0,0.00020835,2]
[380501672,1755795064042,-480.0,0.00021109,2]
[380501674,1755795064054,-151.0,0.00021121,2]
[380501676,1755795064063,-99.64080465,0.00021383,2]
[380501678,1755795064073,-480.0,0.00021383,2]
[380501680,1755795064083,-480.0,0.00021383,2]
[380501682,1755795064093,-1493.01,0.00021383,2]
[380501684,1755795064103,-317.53219736,0.00021383,2]
[380501686,1755795064112,-6272.87076935,0.00021383,2]
[380501688,1755795064128,-2949.59923065,0.00021383,2]
[380501690,1755795064138,-480.0,0.00021383,2]
[380501692,1755795064148,-3333.0,0.00021384,2]
[380501694,1755795064157,-603.72,0.00021384,2]
[380501696,1755795064167,-151.0,0.00021385,2]
[380501698,1755795064176,-151.0,0.00021385,2]
[380501700,1755795064186,-151.0,0.00021385,2]
[380501702,1755795064195,-480.0,0.00021385,2]
[380501704,1755795064205,-5317.09,0.00021385,2]
[380501706,1755795064218,-630.99,0.00021385,2]
[380501709,1755795064237,-2206.92,0.00021385,2]
[380501712,1755795064253,-567.83,0.00021385,2]
[380501714,1755795064266,-2337.19,0.00021385,2]
[380501716,1755795064281,-1824.3,0.00021385,2]
[380501719,1755795064298,-3790.51,0.00021385,2]
[380501722,1755795064313,-725.19,0.00021385,2]
[380501724,1755795064329,-528.115971,0.00021385,2]
[380501727,1755795064344,-528.115971,0.00021385,2]
[380501729,1755795064358,-528.115971,0.00021385,2]
[380501732,1755795064372,-528.115971,0.00021385,2]
[380501734,1755795064388,-1348.03,0.00021387,2]
[380501737,1755795064402,-831.39,0.00021387,2]
[380501739,1755795064414,-480.0,0.00021387,2]
[380501741,1755795064428,-1041.87,0.00021387,2]
[380501743,1755795064444,-480.0,0.00021387,2]
[380501746,1755795064460,-832.73,0.00021387,2]
[380501749,1755795064476,-480.0,0.00021387,2]
[380501751,1755795064491,-957.11,0.00021387,2]
[380501753,1755795064502,-645.56,0.00021387,2]
[380501755,1755795064513,-1110.54,0.00021387,2]
[380501758,1755795064526,-756.48,0.00021387,2]
[380501760,1755795064541,-1680.0,0.0002139,2]
[380501763,1755795064554,-420.0,0.0002139,2]
[380501765,1755795064566,-894.03,0.00021394,2]
[380501768,1755795064580,-505.31,0.00021394,2]
[380501770,1755795064593,-480.0,0.00021394,2]
[380501772,1755795064604,-835.36,0.00021394,2]
[380501774,1755795064617,-747.78,0.00021394,2]
[380501777,1755795064632,-480.0,0.00021394,2]
[380501779,1755795064645,-537.54,0.00021395,2]
[380501781,1755795064657,-151.0,0.00021395,2]
[380501784,1755795064670,-151.0,0.00021395,2]
[380501786,1755795064682,-151.452875,0.00021395,2]
[380501788,1755795064695,-151.0,0.00021395,2]
[380501791,1755795064707,-480.0,0.00021395,2]
[380501793,1755795064720,-480.0,0.00021395,2]
[380501795,1755795064732,-480.0,0.00021395,2]
[380501797,1755795064745,-629.66,0.00021395,2]
[380501800,1755795064757,-480.0,0.00021395,2]
[380501802,1755795064769,-480.0,0.00021395,2]
[380501804,1755795064781,-788.2,0.00021395,2]
[380501806,1755795064793,-480.0,0.00021395,2]
[380501809,1755795064806,-913.01,0.00021395,2]
[380501811,1755795064818,-480.0,0.00021395,2]
[380501813,1755795064829,-1125.06,0.00021395,2]
[380501816,1755795064842,-151.0,0.00021395,2]
[380501818,1755795064856,-151.0,0.00021395,2]
[380501820,1755795064868,-151.0,0.00021395,2]
[380501821,1755795064881,-151.0,0.00021395,2]
[380501822,1755795064894,-151.0,0.00021395,2]
[380501823,1755795064907,-151.0,0.00021395,2]